bitfinex-derivatives/quotes_ETHF0:USTF0_20260204
["timestamp","ask_amount","ask_price","bid_price","bid_amount"]
[1770243675429,7.47953822,2131.8,2130.0,8.74534251]
[1770243675628,7.47953822,2131.8,2130.3,7.66305251]
[1770243676129,7.47953822,2131.8,2130.3,7.89829251]
[1770243676328,7.71458822,2132.1,2130.5,7.66305251]
[1770243676524,0.00441713,2131.8,2130.5,7.89827251]
[1770243676927,0.47,2132.4,2130.2,1.08217]
[1770243676928,7.47953822,2132.6,2130.9,8.74488251]
[1770243677132,7.47953822,2131.6,2130.0,4.21893288]
[1770243677329,7.47953822,2131.6,2129.8,5.62308021]
[1770243677330,0.47,2131.6,2129.8,1.3177]
[1770243677630,7.94953822,2131.6,2129.8,0.09597848]
[1770243678030,7.95470705,2131.6,2129.8,0.09597848]
[1770243678233,7.47953822,2131.1,2129.5,0.00365559]
[1770243678629,7.47953822,2131.5,2129.7,0.23531]
[1770243678933,7.47953822,2131.5,2130.0,0.23527]
[1770243679128,0.0040204,2131.4,2130.1,7.66305251]
[1770243679427,0.0040204,2131.2,2130.1,7.66305251]
[1770243679631,2.54962934,2131.5,2130.1,7.66305251]
[1770243679927,1.08174,2131.2,2129.8,7.66305251]
[1770243680128,0.23517,2131.0,2129.8,7.66305251]
[1770243680333,0.0040204,2130.4,2129.5,7.6667081]
[1770243680529,0.47,2130.6,2129.5,7.6667081]
[1770243680730,0.47,2131.1,2129.5,7.6667081]
[1770243681229,0.0040204,2131.0,2129.5,7.6667081]
[1770243681434,7.48355862,2131.0,2129.5,7.6667081]
[1770243681729,7.47953822,2130.6,2129.5,3.60311286]
[1770243681931,7.47953822,2130.4,2129.5,3.60311286]
[1770243682334,0.70516,2131.1,2129.5,3.60311286]
[1770243682533,0.23517,2131.0,2129.5,3.60311286]
[1770243682736,0.23517,2131.0,2129.5,3.60846485]
[1770243682934,0.47,2131.1,2129.5,3.60846485]
[1770243683535,0.23517,2131.0,2129.5,3.60846485]
[1770243683935,6.99389343,2130.9,2129.5,3.60846485]
[1770243684333,6.99389343,2130.4,2129.5,0.00535199]
[1770243684933,6.99389343,2130.4,2129.5,7.14818957]
[1770243685532,6.99389343,2130.4,2129.5,0.00535199]
[1770243686635,6.99389343,2130.1,2129.0,2.11737468]
[1770243686931,6.99389343,2129.9,2129.0,2.11737468]
[1770243687536,7.22922343,2129.6,2127.8,0.47]
[1770243687734,7.22922343,2129.6,2128.3,7.14283758]
[1770243688435,6.99389343,2129.4,2128.3,7.14283758]
[1770243688640,6.99389343,2129.4,2128.3,7.1463197]
[1770243688836,6.99389343,2129.7,2128.3,7.3817897]
[1770243689340,0.00539794,2129.9,2128.7,7.37825758]
[1770243690540,6.99929137,2129.9,2128.7,7.14283758]
[1770243691443,0.00539794,2129.9,2128.7,7.14283758]
[1770243691840,6.99929137,2129.9,2128.7,7.14283758]
[1770243692338,7.22911343,2130.5,2129.1,2.93992082]
[1770243692542,7.22913343,2130.4,2129.1,2.93992082]
[1770243693148,7.22913343,2130.4,2129.1,2.87606259]
[1770243693344,7.23466205,2130.4,2129.1,2.87606259]
[1770243693647,6.99389343,2130.2,2129.1,2.87606259]
[1770243693943,0.23525,2130.3,2129.1,2.87606259]
[1770243694245,7.22914343,2130.3,2129.1,2.87606259]
[1770243694644,0.00552862,2130.4,2129.1,2.87606259]
[1770243695941,6.80784397,2132.1,2130.0,1.0823]
[1770243695942,0.47,2132.1,2130.0,1.0823]
[1770243696140,6.99389343,2131.9,2130.4,1.08209]
[1770243696443,6.99389343,2132.7,2130.9,7.14283758]
[1770243696646,8.16745683,2133.8,2130.9,7.14283758]
[1770243696647,6.99389343,2134.3,2132.4,7.14283758]
[1770243696840,9.98370433,2134.6,2132.9,7.14283758]
[1770243696841,6.99389343,2134.6,2132.9,7.14283758]
[1770243697039,0.47,2135.2,2133.7,2.93992082]
[1770243697241,3.40029819,2135.5,2133.9,4.15956234]
[1770243697441,3.40029819,2135.5,2134.3,0.2348]
[1770243697644,3.40029819,2135.5,2133.5,6.00435288]
[1770243697838,3.40029819,2135.5,2133.6,4.7230421]
[1770243698039,3.4044377,2135.5,2133.7,0.1467438]
[1770243698242,0.23473,2135.1,2133.0,4.38786291]
[1770243698441,6.99389343,2134.5,2133.0,0.32426767]
[1770243698643,6.99389343,2134.3,2132.9,0.00519289]
[1770243698845,2.93029819,2134.3,2132.9,0.00519289]
[1770243699348,2.93029819,2134.3,2132.9,7.14803047]
[1770243699349,2.86643996,2134.3,2132.9,7.14803047]
[1770243699750,2.86643996,2134.3,2132.9,0.00519289]
[1770243700451,1.31496,2134.3,2132.9,0.00519289]
[1770243700646,0.23481,2134.3,2132.9,0.00519289]
[1770243700848,0.47,2134.5,2132.9,7.14803047]
[1770243701051,0.47,2134.5,2133.3,7.14283758]
[1770243701247,0.47,2134.5,2132.9,7.14803047]
[1770243701248,6.99389343,2134.4,2132.9,7.14803047]
[1770243701442,8.07398343,2134.4,2132.9,0.00519289]
[1770243701647,6.99389343,2134.1,2132.9,0.00519289]
[1770243701848,6.99389343,2134.1,2132.9,7.14803047]
[1770243702349,6.99389343,2135.4,2133.7,7.14283758]
[1770243702843,6.99389343,2135.4,2133.9,7.14283758]
[1770243704143,0.00413951,2135.5,2133.8,0.9332]
[1770243704144,6.99389343,2135.2,2133.8,0.9332]
[1770243704349,0.00413951,2135.5,2133.8,8.07603758]
[1770243704350,6.99803294,2135.5,2133.8,8.07603758]
[1770243704746,6.99389343,2135.0,2133.8,0.9332]
[1770243705453,6.99389343,2136.5,2134.6,1.07993]
[1770243705651,2.31149343,2137.0,2135.0,1.07976]
[1770243705850,2.31149343,2137.0,2135.0,7.14283758]
[1770243705851,5.84695306,2136.8,2135.0,7.14283758]
[1770243706151,0.23454,2136.8,2135.0,7.14283758]
[1770243706355,0.22048853,2136.8,2135.0,7.14283758]
[1770243706549,6.99389343,2136.6,2135.0,7.07897935]
[1770243706750,6.99389343,2136.3,2135.0,0.00502305]
[1770243707055,6.99389343,2135.7,2134.0,2.12016302]
[1770243707351,16.361,2135.6,2134.0,2.12016302]
[1770243707651,6.99389343,2135.9,2134.1,1.31503]
[1770243707948,7.46289343,2136.2,2134.5,0.23478]
[1770243708546,7.46289343,2136.2,2134.6,7.14283758]
[1770243708952,6.99389343,2138.6,2136.6,7.14283758]
[1770243709154,6.99389343,2137.8,2136.6,7.14283758]
[1770243709354,6.99389343,2138.4,2136.6,7.14283758]
[1770243709656,7.22826343,2138.3,2136.6,2.93992082]
[1770243709955,7.23415703,2138.3,2136.6,2.94469323]
[1770243710152,6.99389343,2137.7,2136.6,0.00477241]
[1770243710453,4.76809306,2137.8,2136.6,0.00477241]
[1770243710454,0.23433,2138.6,2136.9,7.14283758]
[1770243710658,0.23433,2138.6,2136.6,0.00477241]
[1770243710659,1.31254,2138.2,2136.6,0.00477241]
[1770243710858,1.07844,2137.7,2136.6,0.00477241]
[1770243711060,1.31288,2137.7,2136.6,0.00477241]
[1770243711260,0.240505,2137.7,2136.6,0.00477241]
[1770243711554,0.23444,2137.7,2136.6,7.14760999]
[1770243712260,6.99389343,2138.3,2136.6,7.14760999]
[1770243712460,7.1705402,2138.3,2136.6,7.14760999]
[1770243712759,0.24604991,2138.3,2136.6,7.14760999]
[1770243712962,4.76809306,2138.2,2136.6,7.14760999]
[1770243713260,4.76809306,2137.7,2136.6,0.00477241]
[1770243713460,4.76809306,2137.8,2136.6,0.00477241]
[1770243713660,0.240505,2138.0,2136.6,7.14760999]
[1770243713861,5.00859806,2138.2,2136.6,7.14760999]
[1770243714158,4.76809306,2138.1,2136.6,7.14760999]
[1770243714454,7.49910638,2137.9,2136.6,7.14760999]
[1770243714855,4.76809306,2137.8,2136.6,7.14760999]
[1770243715059,7.73961138,2137.8,2136.6,7.14760999]
[1770243715258,7.49910638,2137.7,2136.6,7.14760999]
[1770243715460,0.00554491,2138.3,2136.8,8.59057755]
[1770243715755,0.00554491,2138.3,2137.2,7.27720755]
[1770243715960,14.593,2138.9,2137.4,7.27720755]
[1770243716162,7.49910638,2139.4,2137.6,7.27720755]
[1770243716364,7.96810638,2139.4,2138.1,7.27720755]
[1770243716664,0.240505,2139.3,2138.2,0.23437]
[1770243716962,0.00507774,2139.3,2138.2,0.00545562]
[1770243717363,0.469,2140.0,2138.2,0.23982562]
[1770243717658,1.3107,2141.2,2139.2,7.50912122]
[1770243717858,1.3107,2141.2,2139.2,7.27486122]
[1770243717859,1.31081,2141.0,2139.2,7.27486122]
[1770243718055,0.240505,2141.1,2139.0,0.469]
[1770243718056,5.99778023,2141.1,2139.0,0.469]
[1770243718360,8.16745683,2144.5,2138.2,0.00545562]
[1770243718361,3.05502228,2147.4,2144.7,1.07488]
[1770243718659,1.0742,2146.1,2144.7,0.0044948]
[1770243718858,7.58023765,2146.8,2145.0,0.23363]
[1770243719058,1.07804615,2147.7,2145.3,5.36237231]
[1770243719059,7.49910638,2147.2,2145.3,5.36237231]
[1770243719252,7.49910638,2147.2,2145.1,0.468]
[1770243719456,11.922,2147.3,2145.1,0.468]
[1770243719457,7.76922523,2147.1,2145.1,0.468]
[1770243719657,7.30122523,2147.1,2145.1,0.468]
[1770243719853,0.468,2147.3,2145.1,0.40414177]
[1770243720060,7.76922523,2147.3,2145.1,0.40414177]
[1770243720258,1.07806615,2147.7,2145.9,1.07424]
[1770243720259,0.00465615,2147.7,2145.9,1.07424]
[1770243720458,0.00465615,2147.7,2145.6,1.07443]
[1770243720655,0.00465615,2147.7,2146.0,1.07422]
[1770243720856,0.00465615,2147.7,2146.0,0.468]
[1770243721054,1.07810158,2147.4,2145.2,6.44909762]
[1770243721261,8.37509523,2146.8,2145.2,6.44909762]
[1770243721458,8.37527523,2146.4,2144.8,6.44909762]
[1770243721664,1.07313,2148.2,2145.7,6.44909762]
[1770243721863,0.23324,2148.7,2146.3,6.95341889]
[1770243722158,7.30122523,2148.5,2146.0,1.0742]
[1770243722361,7.30122523,2148.5,2145.8,1.77587]
[1770243722362,7.30122523,2148.9,2147.0,1.07369]
[1770243722561,7.30122523,2148.9,2146.8,1.54182]
[1770243722864,1.07224,2150.0,2147.4,1.07353]
[1770243723060,23.91339,2149.9,2147.7,6.95341889]
[1770243723366,7.30122523,2149.6,2147.7,2.75050213]
[1770243723562,8.37368523,2149.6,2147.7,2.75050213]
[1770243723764,1.07233,2149.8,2147.7,2.75050213]
[1770243723765,7.30122523,2149.2,2147.7,2.75050213]
[1770243723960,1.07289,2148.7,2147.7,2.75050213]
[1770243724166,7.30122523,2148.9,2146.8,0.47374524]
[1770243724557,0.00348895,2149.2,2147.0,1.07373]
[1770243724770,4.17445742,2149.2,2146.9,6.95341889]
[1770243724967,3.10179742,2149.2,2147.5,6.95341889]
[1770243725264,7.30122523,2151.0,2148.9,1.07278]
[1770243725464,0.467,2151.5,2149.6,8.02584889]
[1770243725670,7.76822523,2151.5,2149.9,1.07228]
[1770243725866,0.00373883,2151.5,2150.1,1.07218]
[1770243726066,0.2327,2153.6,2149.6,0.00555032]
[1770243726067,7.30122523,2154.5,2151.8,1.07134]
[1770243726272,7.30122523,2154.5,2151.9,1.53829]
[1770243726569,7.30122523,2155.5,2153.4,1.07051]
[1770243726767,1.06861,2157.3,2154.4,8.02343889]
[1770243726968,12.21667848,2157.2,2155.2,8.02303889]
[1770243727264,19.099,2157.1,2155.0,8.02314889]
[1770243727473,0.00589139,2157.3,2155.9,6.95341889]
[1770243727766,0.00589139,2157.3,2155.5,6.95341889]
[1770243727963,0.00589139,2157.3,2154.9,0.467]
[1770243727964,7.76822523,2157.2,2154.9,0.467]
[1770243728166,7.30122523,2156.9,2154.9,0.467]
[1770243728763,7.30122523,2156.8,2154.4,0.00595799]
[1770243729067,1.06916,2156.2,2154.4,6.95937688]
[1770243729270,1.06927,2156.0,2154.4,6.95937688]
[1770243729472,1.06935,2155.8,2154.5,0.9282]
[1770243729768,7.76722523,2155.9,2154.0,0.467]
[1770243729970,7.30122523,2155.7,2154.0,0.32767848]
[1770243730562,7.30562869,2155.7,2154.0,0.33291712]
[1770243730867,0.466,2156.1,2154.4,6.95341889]
[1770243731067,1.53521,2156.1,2154.4,6.95341889]
[1770243731268,0.466,2156.1,2154.4,6.95341889]
[1770243731463,0.466,2156.6,2154.4,6.95341889]
[1770243731665,1.06837,2157.8,2155.1,6.95341889]
[1770243731865,1.06882,2156.9,2154.9,6.95341889]
[1770243732066,0.5467596,2156.8,2154.4,6.95341889]
[1770243732372,0.23242,2156.2,2154.4,6.95341889]
[1770243732566,1.3017,2156.0,2154.1,0.0049]
[1770243732866,1.3017,2156.0,2152.9,1.30356]
[1770243732867,1.07004,2154.4,2151.9,6.95341889]
[1770243733167,1.0706,2153.3,2151.9,6.95341889]
[1770243733366,15.584,2154.3,2151.9,6.95341889]
[1770243733367,7.30122523,2154.5,2152.2,0.23285]
[1770243733665,7.30122523,2154.5,2151.9,0.466]
[1770243733666,0.466,2155.2,2153.4,6.95341889]
[1770243733870,0.47019101,2155.2,2153.4,6.95929901]
[1770243734065,8.37136523,2154.2,2151.2,1.07162]
[1770243734268,1.07095,2152.6,2150.2,0.466]
[1770243734468,8.37267523,2151.6,2150.0,1.56742957]
[1770243734666,8.37267523,2151.6,2149.3,0.466]
[1770243734667,8.37276523,2151.4,2149.3,0.466]
[1770243734871,8.37309523,2150.8,2148.4,0.69926]
[1770243735067,8.37336523,2150.2,2148.4,0.46972085]
[1770243735270,8.37346523,2150.0,2148.4,0.00372085]
[1770243735471,7.30122523,2149.7,2148.4,0.00372085]
[1770243735671,7.30122523,2149.7,2147.3,0.466]
[1770243735672,7.30122523,2149.1,2147.3,0.466]
[1770243735871,7.30122523,2148.6,2146.3,0.466]
[1770243736066,7.30122523,2148.6,2146.8,2.79837509]
[1770243736466,7.30122523,2148.1,2146.3,3.29635112]
[1770243736670,7.30122523,2147.9,2146.3,0.00391928]
[1770243736864,0.00480667,2148.1,2146.3,0.00391928]
[1770243736865,7.30122523,2147.8,2146.3,0.00391928]
[1770243737074,7.30122523,2147.8,2146.3,2.8342704]
[1770243737870,7.30122523,2147.8,2146.3,0.00391928]
[1770243738072,0.00480667,2148.1,2147.4,1.07353]
[1770243738375,8.1274541,2150.1,2148.4,1.07303]
[1770243738573,8.0526221,2150.7,2148.5,0.466]
[1770243738869,7.5866221,2150.2,2148.5,0.466]
[1770243739173,7.5866221,2150.2,2148.5,0.4079419]
[1770243739469,7.59215044,2150.2,2148.5,0.00580013]
[1770243739671,7.5866221,2150.0,2148.5,0.00580013]
[1770243740274,0.466,2149.9,2148.5,0.00580013]
[1770243740474,7.5866221,2150.0,2148.5,0.00580013]
[1770243740770,0.466,2149.9,2148.5,0.00580013]
[1770243740974,9.09738094,2149.9,2148.5,0.00580013]
[1770243741170,8.02508094,2149.9,2148.5,0.00580013]
[1770243741373,7.55908094,2149.6,2147.6,0.20474632]
[1770243742077,7.55908094,2149.3,2147.1,0.20474632]
[1770243742475,7.55908094,2149.1,2147.8,0.01746663]
[1770243742775,7.6614541,2148.9,2147.8,0.01746663]
[1770243743076,1.07294,2148.6,2146.7,0.466]
[1770243743377,1.30613,2148.7,2146.4,3.81436988]
[1770243743578,0.23323,2148.7,2146.4,3.81436988]
[1770243743977,1.07301,2148.5,2146.4,3.81862229]
[1770243744177,0.23325,2148.6,2146.4,3.81862229]
[1770243744378,1.30619,2148.6,2146.4,0.00425241]
[1770243744579,1.30631,2148.4,2146.4,0.00425241]
[1770243744779,1.07315,2148.2,2146.4,0.00425241]
[1770243745077,7.65880953,2148.0,2146.4,0.00425241]
[1770243745273,7.65880953,2147.8,2146.4,0.00425241]
[1770243745473,7.65880953,2147.1,2145.1,0.23362]
[1770243745675,7.65880953,2146.9,2145.1,0.23362]
[1770243745877,7.65880953,2146.7,2144.7,3.5300692]
[1770243746471,7.66246273,2146.7,2144.7,3.53469834]
[1770243746879,7.66246273,2146.7,2145.1,3.60187377]
[1770243748173,0.0036532,2146.7,2145.4,3.60187377]
[1770243749177,7.66246273,2146.7,2145.4,3.60187377]
[1770243749381,7.66246273,2146.7,2145.0,4.02161001]
[1770243749784,0.0036532,2146.7,2145.0,4.02161001]
[1770243750082,0.0036532,2146.7,2144.8,1.07483]
[1770243750277,0.0036532,2146.7,2144.8,0.66114325]
[1770243750475,0.0036532,2146.7,2145.1,0.23362]
[1770243750683,7.66433035,2147.4,2145.6,1.30798]
[1770243750982,7.66433035,2147.8,2146.0,1.30774]
[1770243751182,7.66433035,2147.8,2146.0,1.24388177]
[1770243751382,7.66433035,2147.8,2146.1,1.30769]
[1770243751784,0.00453783,2147.8,2146.9,1.07377]
[1770243751987,7.66433035,2148.8,2147.4,0.23337]
[1770243752182,7.66433035,2148.8,2147.7,0.23334]
[1770243752386,7.66433035,2149.2,2147.7,0.23334]
[1770243752585,7.89751035,2149.2,2147.0,0.23341]
[1770243752884,7.66433035,2148.6,2146.9,0.46968631]
[1770243753387,7.66433035,2148.6,2147.1,0.2334]
[1770243753589,7.66433035,2149.0,2147.5,1.07348]
[1770243753785,0.0050942,2149.2,2147.6,0.23334]
[1770243754288,0.0050942,2149.2,2147.8,0.23333]
[1770243754488,0.0050942,2149.2,2147.8,0.69933]
[1770243756386,7.66433035,2149.8,2148.5,0.23325]
[1770243756778,11.854,2150.9,2148.5,0.23325]
[1770243756779,7.66433035,2150.9,2149.1,1.07268]
[1770243757388,7.66859611,2150.9,2149.1,1.0770924]
[1770243757780,7.66859611,2150.9,2149.3,0.23316]
[1770243758388,7.66859611,2150.9,2149.4,0.23315]
[1770243758786,7.66859611,2150.9,2149.5,0.23314]
[1770243759290,0.00426576,2150.9,2149.5,0.23314]
[1770243759683,7.90159611,2150.9,2149.1,0.0044124]
[1770243760090,0.00426576,2150.9,2149.9,0.2331]
[1770243760283,7.66433035,2151.9,2150.5,0.23303]
[1770243760484,7.66433035,2152.4,2151.3,0.23295]
[1770243760888,7.66433035,2152.4,2151.4,0.237]
[1770243761191,7.66859611,2152.4,2151.4,0.237]
[1770243761391,0.00361912,2152.4,2151.4,0.24287955]
[1770243762388,7.66433035,2152.9,2151.5,0.23293]
[1770243762589,7.66433035,2152.9,2151.4,0.24287955]
[1770243762891,7.66433035,2152.5,2151.4,0.24287955]
[1770243763186,7.66433035,2152.8,2151.4,0.47581955]
[1770243763391,7.66433035,2153.3,2152.1,0.23286]
[1770243763591,7.66433035,2154.7,2152.8,1.07083]
[1770243763792,0.00788488,2154.3,2152.2,3.80039516]
[1770243763992,0.466,2154.9,2152.8,3.80039516]
[1770243764185,0.466,2154.9,2153.0,3.80039516]
[1770243764391,0.46945793,2154.9,2153.0,3.8061459]
[1770243764589,0.00788488,2154.8,2153.0,4.0389059]
[1770243764992,1.07001,2154.5,2153.0,0.00575074]
[1770243765291,0.4055997,2154.9,2153.0,3.79808765]
[1770243765494,7.65880953,2154.4,2153.0,3.65876613]
[1770243765789,8.72896953,2154.2,2152.8,0.466]
[1770243766088,1.07085,2152.8,2151.4,0.237]
[1770243766290,0.23279,2152.8,2151.4,0.237]
[1770243766483,1.07089,2152.7,2151.4,0.24056285]
[1770243766687,0.00788488,2152.0,2151.4,0.24056285]
[1770243767085,0.465,2151.9,2150.4,2.10069355]
[1770243767285,1.07115,2152.2,2150.4,2.10069355]
[1770243767286,0.23288,2152.0,2150.4,2.10069355]
[1770243767490,0.465,2152.3,2150.4,2.10069355]
[1770243767887,0.00455537,2152.8,2151.1,3.86512939]
[1770243768084,7.65880953,2152.7,2151.1,3.87057989]
[1770243768285,7.65880953,2152.7,2151.2,0.6938]
[1770243768492,7.65880953,2152.1,2151.2,0.6938]
[1770243768690,7.65880953,2151.7,2150.4,2.10069355]
[1770243769087,7.65880953,2152.3,2150.9,4.20938631]
[1770243769487,7.65880953,2152.3,2151.3,0.09335645]
[1770243769686,0.00455537,2152.8,2151.6,0.09335645]
[1770243769884,0.00455537,2152.8,2151.5,4.30274276]
[1770243770096,0.465,2154.0,2151.9,7.20617832]
[1770243770588,0.465,2154.0,2151.6,1.07142]
[1770243770589,1.07012,2154.3,2152.2,7.14229009]
[1770243770890,0.465,2154.1,2152.2,6.97329832]
[1770243771194,0.47078397,2154.1,2152.2,6.97329832]
[1770243771397,5.02382752,2154.1,2152.2,6.97329832]
[1770243771598,0.47078397,2154.1,2152.2,6.97329832]
[1770243772196,7.65880953,2153.7,2152.2,6.97329832]
[1770243772592,4.55304355,2153.5,2152.0,0.465]
[1770243772895,7.65880953,2153.4,2152.0,0.465]
[1770243773095,7.65880953,2153.3,2152.0,0.465]
[1770243773494,7.65880953,2152.9,2151.3,6.97730032]
[1770243773890,6.92869745,2152.8,2151.3,6.97730032]
[1770243774092,6.92869745,2152.7,2151.3,6.97730032]
[1770243774287,6.92869745,2152.6,2151.3,6.97730032]
[1770243774492,6.92869745,2152.4,2150.5,7.78912896]
[1770243774691,6.92869745,2151.8,2150.5,7.55609896]
[1770243775095,11.481741,2151.3,2150.1,8.02109896]
[1770243775290,0.23292,2151.6,2150.1,8.02109896]
[1770243775291,6.92869745,2151.2,2150.1,0.465]
[1770243775495,0.00507082,2151.2,2150.1,8.02646717]
[1770243775986,4.55304355,2151.1,2150.1,0.47036821]
[1770243776386,4.55304355,2151.0,2150.1,0.47036821]
[1770243776588,11.481741,2151.1,2150.1,0.47036821]
[1770243776791,6.92869745,2151.0,2150.1,0.00536821]
[1770243776993,6.92869745,2150.8,2150.1,0.00536821]
[1770243777297,1.07672082,2151.2,2148.7,7.55609896]
[1770243777298,6.92869745,2150.4,2148.7,7.55609896]
[1770243777690,17.35099,2151.0,2148.7,7.55609896]
[1770243777691,6.92869745,2150.3,2148.7,7.55609896]
[1770243777889,6.92869745,2150.3,2148.7,7.78932896]
[1770243778195,6.92869745,2150.3,2148.7,7.79394401]
[1770243778698,6.92869745,2150.3,2148.7,0.00461505]
[1770243778699,11.481741,2149.9,2148.7,0.00461505]
[1770243778997,7.24233939,2149.8,2148.7,0.00461505]
[1770243779197,7.24233939,2149.6,2148.7,0.00461505]
[1770243779398,11.79538294,2149.5,2148.7,0.00461505]
[1770243779589,11.79538294,2149.5,2147.8,7.46898675]
[1770243779590,4.55304355,2149.0,2147.8,7.46898675]
[1770243779795,7.24233939,2149.1,2147.8,7.46898675]
[1770243779994,4.55304355,2148.9,2147.5,0.23335]
[1770243780190,7.24233939,2149.0,2147.4,7.46898675]
[1770243780496,12.02860294,2148.8,2147.2,0.465]
[1770243780796,4.55304355,2148.8,2147.4,0.00552034]
[1770243781095,4.55304355,2148.4,2147.4,0.00552034]
[1770243781296,4.55304355,2148.3,2147.4,0.00552034]
[1770243781599,4.55304355,2148.6,2147.4,0.00552034]
[1770243781799,0.16930177,2149.4,2147.4,7.70787709]
[1770243781995,0.00378815,2149.6,2148.0,7.46898675]
[1770243782202,0.00378815,2149.6,2148.2,8.54210675]
[1770243782395,0.00378815,2149.6,2148.1,0.465]
[1770243782595,4.55304355,2149.5,2148.1,0.465]
[1770243782791,7.24233939,2149.2,2148.1,0.465]
[1770243782993,7.24233939,2149.1,2147.5,7.46898675]
[1770243783396,7.24233939,2149.1,2147.7,7.46898675]
[1770243783599,7.24612754,2149.6,2148.0,7.46898675]
[1770243783799,7.24612754,2149.6,2148.0,7.70229675]
[1770243784000,7.24233939,2149.2,2147.6,7.46898675]
[1770243784197,7.24233939,2149.0,2147.4,0.00552034]
[1770243784494,7.24233939,2148.9,2147.4,7.47450709]
[1770243784695,7.24233939,2148.9,2147.6,7.46898675]
[1770243785206,0.465,2149.2,2147.6,7.70233675]
[1770243785502,7.24233939,2149.4,2147.8,7.46898675]
[1770243786103,11.79538294,2149.0,2147.4,0.00552034]
[1770243786295,4.55304355,2149.5,2147.6,7.70233675]
[1770243786498,7.24233939,2149.5,2148.0,7.46898675]
[1770243786903,11.79538294,2149.4,2148.0,7.46898675]
[1770243787198,4.55304355,2149.1,2147.5,7.46898675]
[1770243787400,7.24233939,2149.3,2147.5,7.46898675]
[1770243787600,7.24233939,2149.1,2147.5,7.46898675]
[1770243788104,7.24233939,2149.1,2147.7,0.23334]
[1770243788402,7.24233939,2149.1,2147.7,7.70232675]
[1770243788703,7.24233939,2148.8,2147.4,7.47450709]
[1770243789097,4.55304355,2148.5,2147.4,7.47450709]
[1770243789495,4.55304355,2148.4,2147.4,0.00552034]
[1770243789700,11.79538294,2148.8,2147.4,0.00552034]
[1770243790005,11.79538294,2148.7,2147.4,0.00552034]
[1770243790205,7.24233939,2148.7,2147.4,0.00552034]
[1770243790701,4.55304355,2148.5,2147.4,0.00552034]
[1770243790906,7.24233939,2148.5,2147.4,0.00552034]
[1770243791108,11.79538294,2148.3,2147.4,0.00552034]
[1770243791405,7.47557939,2148.7,2147.4,0.00552034]
[1770243791707,7.24233939,2149.1,2147.7,7.70232675]
[1770243792307,7.47555939,2148.9,2147.4,0.00552034]
[1770243792511,7.24233939,2148.5,2147.3,7.33518557]
[1770243792807,7.24233939,2148.4,2147.2,0.23339]
[1770243793003,7.24233939,2148.3,2146.5,2.9689897]
[1770243793203,7.24233939,2148.3,2146.8,0.23344]
[1770243793401,7.24233939,2148.3,2146.8,0.17379437]
[1770243793602,7.24233939,2149.4,2147.6,0.23334]
[1770243793807,7.24233939,2149.4,2147.8,1.07333]
[1770243794110,0.00378815,2149.6,2148.9,0.23321]
[1770243794307,7.24233939,2150.3,2148.9,1.07787943]
[1770243794502,7.24233939,2151.1,2149.6,7.46898675]
[1770243794701,7.24233939,2151.5,2150.0,1.07223]
[1770243794910,7.24233939,2151.9,2150.5,7.70201675]
[1770243795106,8.31362939,2151.9,2150.3,7.46898675]
[1770243795306,7.24233939,2152.1,2150.6,0.9299]
[1770243795609,11.79538294,2151.7,2150.6,0.93571445]
[1770243796104,4.55304355,2151.2,2150.6,0.93571445]
[1770243796311,4.55304355,2151.4,2150.6,0.93571445]
[1770243796710,4.55304355,2151.2,2150.6,0.93571445]
[1770243796911,7.24233939,2151.6,2150.6,0.93571445]
[1770243797114,4.55304355,2151.2,2150.6,0.93571445]
[1770243797311,7.24233939,2150.8,2149.3,9.97197645]
[1770243797514,7.24233939,2150.8,2149.3,7.46898675]
[1770243797714,11.79538294,2150.6,2149.3,7.46898675]
[1770243797918,7.24233939,2150.6,2149.3,7.46898675]
[1770243798212,7.24233939,2151.5,2150.2,7.70204675]
[1770243798515,7.24233939,2152.0,2150.3,7.93498675]
[1770243798711,7.24233939,2151.9,2150.3,7.93498675]
[1770243798911,11.79538294,2151.9,2150.3,7.93498675]
[1770243799109,7.24233939,2151.9,2150.4,7.70203675]
[1770243799510,7.24233939,2151.9,2150.6,7.70200675]
[1770243799716,7.70833939,2152.3,2150.9,0.23299]
[1770243799915,7.70833939,2152.3,2150.5,7.46898675]
[1770243799916,7.24233939,2152.0,2150.5,7.46898675]
[1770243800112,1.07076,2153.0,2151.6,8.54042675]
[1770243800113,7.10301787,2153.0,2151.6,8.54042675]
[1770243800317,0.465,2153.5,2152.0,0.23287]
[1770243800511,4.55304355,2153.3,2152.0,7.56253523]
[1770243800914,4.55304355,2153.2,2152.0,7.56253523]
[1770243801111,4.55304355,2153.0,2152.0,7.47386268]
[1770243801315,4.55304355,2152.4,2152.0,0.00487593]
[1770243801621,4.55304355,2152.0,2150.7,7.46898675]
[1770243801819,4.55304355,2152.1,2150.7,7.46898675]
[1770243802116,7.24233939,2152.1,2150.8,0.233]
[1770243802415,4.55304355,2151.7,2150.8,0.23704991]
[1770243802919,7.17848116,2152.1,2150.8,7.70603666]
[1770243803113,4.55304355,2151.9,2150.8,7.70603666]
[1770243803312,11.73152471,2152.1,2150.9,7.61928675]
[1770243803516,7.17848116,2152.1,2150.9,7.61928675]
[1770243803716,0.465,2152.6,2150.9,7.61928675]
[1770243803917,5.01804355,2152.6,2151.1,7.34097444]
[1770243804122,0.70330278,2153.2,2151.2,7.34096444]
[1770243804324,7.03382306,2152.7,2151.2,7.34096444]
[1770243804521,7.03382306,2152.5,2151.2,7.34096444]
[1770243804719,7.03382306,2152.5,2151.2,7.10800444]
[1770243804923,4.55304355,2152.2,2151.2,7.10800444]
[1770243805422,4.55304355,2151.6,2150.9,0.6153]
[1770243805623,0.465,2152.3,2151.1,7.10800444]
[1770243805624,7.03382306,2152.3,2151.1,7.10800444]
[1770243805820,11.58686661,2152.3,2151.1,7.34096444]
[1770243806020,11.58686661,2152.3,2151.2,0.23296]
[1770243806327,7.03382306,2153.9,2152.4,0.23283]
[1770243806516,6.89450154,2153.9,2152.4,7.34083444]
[1770243806721,6.89450154,2153.9,2152.4,0.0055727]
[1770243806722,0.00348961,2153.9,2152.4,0.0055727]
[1770243806925,0.00348961,2153.9,2152.5,7.34084444]
[1770243807223,4.55304355,2153.8,2152.5,7.20152292]
[1770243807524,0.00348961,2153.9,2153.1,7.10800444]
[1770243807725,4.55304355,2153.8,2152.7,7.34082444]
[1770243807923,0.93097848,2154.1,2152.4,0.0055727]
[1770243808124,1.07055,2153.6,2152.4,0.0055727]
[1770243808324,0.23275,2153.4,2152.4,0.0055727]
[1770243808619,7.03382306,2153.7,2152.4,0.09910118]
[1770243808821,7.03382306,2153.7,2152.4,7.67210562]
[1770243809021,4.55304355,2153.3,2152.4,7.67210562]
[1770243809222,0.465,2154.0,2152.8,0.2328]